Cogmind - Beta 11.1 @@@ ROGUE MODE // 2022.07.16 @ 12:17:34 Player: Smie Result: Destroyed by as-86247 with Assembled Focal Cannon Performance ------------- Evolutions (4) 2000 Regions Visited (15) 3000 Robots Destroyed (65) 325 Value Destroyed (1885) 1885 Prototype IDs (53) 1060 Alien Tech Used (0) 0 Bonus (2547) 2547 TOTAL SCORE: 10817 Bonus ------- Follower Combat Kills 186 Aligned with FarCom 300 Met Data Miner 300 Destroyed Z-Imprinter 1000 Triggered Deep Caves Wall 500 Exposed GOLEM Chamber 500 Friendly Fire -239 Cogmind --------- Core Integrity 0/850 Matter 285/300 Energy 32/100 System Corruption 0% Temperature Cool (18) Movement Core (50) Location -6/Deep Caves Parts ------- > --- POWER (1) -------- (None) > --- PROPULSION (4) --- Assembled Alloy Leg > --- UTILITY (8) ------ GOLEM Unit > --- WEAPON (2) ------- (None) > --- INVENTORY (5) ---- Zionite Composite Leg I Zionite Composite Leg I Zionite Composite Leg I RU-N14's Throwing Claymores (3) Peak State ------------ > --- POWER ------------ Zionite Light DM Reactor > --- PROPULSION ------- Makeshift Leg Zionite Glidesys I Zionite Glidesys I Zionite Glidesys I > --- UTILITY ---------- Experimental Heat Sink Large Storage Unit Zionite Metafield Generator Advanced Visual Processing Unit Signal Interpreter Phase Shifter Zionite Weapon Casing System Shield > --- WEAPON ----------- Zionite Laser-S Zionite Laser-M > --- INVENTORY -------- Light Nuclear Core Micro Nuclear Core Zionite Composite Leg I Zionite Composite Leg I Zionite Composite Leg I Zionite Composite Leg I Zionite Heavy Carapace Relay Coupler [Programmer] Rocket Launcher Remote Datajack RU-N14's Throwing Claymores RU-N14's Throwing Claymores RU-N14's Throwing Claymores Powered Hammer [Rating: 87] Favorites ----------- Power Ion Engine Engine Ion Engine Power Core Light Nuclear Core Reactor Zionite Light DM Reactor Propulsion Improved Titanium Leg Leg Improved Titanium Leg Wheel Compact Wheel Hover Unit Zionite Glidesys I Flight Unit VTOL Module Utility Large Storage Unit Device Sensor Array Storage Large Storage Unit Processor Signal Interpreter Hackware System Shield Protection Improved Utility Shielding Weapon Powered Hammer Energy Gun Small Laser Ballistic Gun Assault Rifle Launcher Grenade Launcher Special Weapon RU-N14's Throwing Claymores Impact Weapon Powered Hammer Slashing Weapon Makeshift Sword Special Melee Weapon Improved Datajack Build | -11 -10 -10 -10 -9 -8 -7 -7 -7 -7 -6 -6 -6 -6 -6 -6 ------- Run | Scr Mat Min Exi Min Mat Fac Low Low Dat Pro Fac Low Low Zio Dee Slots Evolved 8 | . . . . . 4 2 . . . . 2 . . . . Power . | . . . . . . . . . . . . . . . . Propulsion 2 | . . . . . 2 . . . . . . . . . . Utility 6 | . . . . . 2 2 . . . . 2 . . . . Weapon . | . . . . . . . . . . . . . . . . Parts Attached 127 | 6 19 4 2 5 18 18 1 . . 4 7 6 7 7 23 Power 8 | 1 2 . . . 2 . . . . . . 1 . . 2 Engine 6 | 1 2 . . . 2 . . . . . . 1 . . . Core 1 | . . . . . . . . . . . . . . . 1 Reactor 1 | . . . . . . . . . . . . . . . 1 Propulsion 32 | 2 2 . . 2 4 8 . . . . . 2 5 2 5 Treads . | . . . . . . . . . . . . . . . . Leg 25 | . 2 . . 2 4 8 . . . . . 2 3 2 2 Wheel 2 | 2 . . . . . . . . . . . . . . . Hover 3 | . . . . . . . . . . . . . . . 3 Flight 2 | . . . . . . . . . . . . . 2 . . Utility 33 | 1 3 1 2 . 3 3 1 . . 2 3 2 1 2 9 Device 11 | . . . 1 . 1 . 1 . . 1 . 1 . 1 5 Storage 3 | 1 1 . . . . . . . . . . . . . 1 Processor 3 | . . . 1 . . . . . . . 1 . 1 . . Hackware 2 | . . . . . . 2 . . . . . . . . . Protection 14 | . 2 1 . . 2 1 . . . 1 2 1 . 1 3 Artifact . | . . . . . . . . . . . . . . . . Weapon 54 | 2 12 3 . 3 9 7 . . . 2 4 1 1 3 7 Energy Gun 18 | 1 4 1 . 2 3 2 . . . . 2 . . . 3 Energy Cannon . | . . . . . . . . . . . . . . . . Ballistic Gun 4 | 1 3 . . . . . . . . . . . . . . Ballistic Cannon . | . . . . . . . . . . . . . . . . Launcher 12 | . 3 1 . 1 2 1 . . . 1 1 . 1 1 . Special Weapon 5 | . . . . . . 1 . . . . . . . 1 3 Impact Weapon 11 | . 2 1 . . 2 2 . . . 1 1 . . 1 1 Slashing Weapon 2 | . . . . . 1 . . . . . . 1 . . . Piercing Weapon . | . . . . . . . . . . . . . . . . Special Melee Weapon 2 | . . . . . 1 1 . . . . . . . . . Unidentified Prototypes 14 | . . . 1 . 2 . . . . . . . . 2 9 Corrupted Parts 1 | . . . . . . . . . . . . 1 . . . System Corruption 3 | . . . . . . . . . . . . 3 . . . Parts Lost 29 | . . . . 2 . . . . . . 8 . 1 . 18 Power 3 | . . . . . . . . . . . 1 . . . 2 Propulsion 7 | . . . . 1 . . . . . . 2 . . . 4 Utility 14 | . . . . . . . . . . . 3 . 1 . 10 Weapon 5 | . . . . 1 . . . . . . 2 . . . 2 Highest Loss Streak 15 | . . . . 2 . . . . . . 5 . 1 . 15 To Critical Strikes . | . . . . . . . . . . . . . . . . Average Slot Usage (%) 96 | . 94 100 100 99 95 99 100 100 100 100 90 81 94 99 95 Engine 7 | . 14 14 14 14 9 7 7 7 7 7 5 6 6 6 1 Leg 24 | . 13 28 28 27 36 30 30 30 30 30 21 19 25 26 16 Wheel 1 | . 14 . . . . . . . . . . . . . . Device 8 | . . . . . 9 7 14 15 15 14 10 10 13 13 11 Storage 8 | . 14 14 14 14 9 7 7 7 7 7 6 6 6 6 8 Processor 10 | . . . 7 14 9 7 7 7 7 7 12 13 14 20 15 Hackware 6 | . . . . . . 14 15 15 15 15 12 6 6 6 5 Protection 6 | . 9 14 7 . 5 6 . . . . 5 6 6 6 8 Energy Gun 6 | . 18 4 14 15 6 3 7 7 7 7 6 . . . 8 Launcher 1 | . . 10 . 1 . . . . . . . . 6 1 . Special Weapon 1 | . . . . . . 2 . . . . . . . 3 2 Impact Weapon 4 | . 2 12 14 10 5 3 7 7 7 6 5 6 . . 1 Slashing Weapon 2 | . . . . . 2 3 . . . . . 3 6 5 . Naked Turns 4 | . . . . . . . . . . . . . . . 4 Heaviest Build 53 | 14 32 33 29 28 40 43 42 35 35 35 43 37 34 40 53 Greatest Support 80 | 26 26 20 20 20 40 80 80 80 80 80 80 73 52 74 77 Greatest Overweight (x) 3 | 1 1 1 1 2 . 1 . . . . . . 2 1 3 Average Overweight (x) . | . . 1 1 1 . . . . . . . . . . . Largest Inventory Capacity 15 | 8 15 15 15 15 15 15 15 15 15 15 15 15 15 15 15 Average Capacity 14 | 7 14 15 15 15 15 15 15 15 15 15 15 15 15 15 14 Most Carried 15 | 6 15 15 15 15 15 15 15 15 15 15 15 15 15 15 15 Average Carried 14 | 3 13 14 14 14 14 14 15 15 15 15 13 12 14 14 14 Final Capacity 15 | 8 15 15 15 15 15 15 15 15 15 15 15 15 15 15 5 Final Carried 15 | 6 15 15 15 15 15 15 15 15 15 15 12 15 15 15 4 Class Distribution -------------------- 29% | Mutant 18% | Derelict-Assassin 14% | Scavenger-Mutant 14% | Hacker-Assassin 13% | Assassin 9% | Hacker-Mutant Dominant Class ---------------- Mutant | -10/Materials Mutant | -10/Mines Mutant | -10/Exiles Mutant | -9/Mines Mutant | -8/Materials Hacker-Mutant | -7/Factory Hacker-Assassin | -7/Lower Caves Hacker-Assassin | -7/Lower Caves Hacker-Assassin | -7/Data Miner Hacker-Assassin | -6/Proximity Caves Hacker-Assassin | -6/Factory Assassin | -6/Lower Caves Assassin | -6/Lower Caves Derelict-Assassin | -6/Zion Scavenger-Mutant | -6/Deep Caves Resources | -11 -10 -10 -10 -9 -8 -7 -7 -7 -7 -6 -6 -6 -6 -6 -6 ----------- Run | Scr Mat Min Exi Min Mat Fac Low Low Dat Pro Fac Low Low Zio Dee Matter Collected 1950 | 260 391 16 120 40 154 296 51 . . 102 80 43 161 50 186 Remotely . | . . . . . . . . . . . . . . . . Salvage Created 2129 | 67 420 . . 65 231 324 51 . . 183 243 . 58 . 487 Parts 107 | 1 32 . . 1 18 10 2 . . 6 6 . 5 . 26 Haulers Intercepted 3 | . 1 . . . 2 . . . . . . . . . . Recyclers Shooed 2 | . . . . . . 1 . . . . 1 . . . . Parts Field Recycled . | . . . . . . . . . . . . . . . . Retrieved Matter . | . . . . . . . . . . . . . . . . Parts Self-Destructed 15 | . . . . . . . 1 . . 5 . . 6 3 . Prevented 3 | . . . . . . . 1 . . . . 2 . . . Kills | -11 -10 -10 -10 -9 -8 -7 -7 -7 -7 -6 -6 -6 -6 -6 -6 ------- Run | Scr Mat Min Exi Min Mat Fac Low Low Dat Pro Fac Low Low Zio Dee Combat Hostiles Destroyed 90 | . 11 2 . 1 6 5 1 . . 4 5 . 4 . 51 Melee 2 | . . . . . . 2 . . . . . . . . . Guns 17 | . 8 . . 1 . 1 1 . . 1 1 . . . 4 Cannons 6 | . . . . . . . . . . . . . . . 6 AOE 62 | . 3 2 . . 5 1 . . . 3 3 . 4 . 41 Classes Destroyed 17 | 1 6 1 . 1 1 2 1 . . . . . . . 4 Worker 1 | . 1 . . . . . . . . . . . . . . Builder 4 | . 2 . . . 1 . . . . . 1 . . . . Tunneler 2 | . . . . 1 . . . . . . 1 . . . . Hauler 3 | . 1 . . . 2 . . . . . . . . . . Recycler 4 | 1 . . . . . 2 . . . . 1 . . . . Operator 1 | . 1 . . . . . . . . . . . . . . Swarmer 18 | . 5 . . . 3 2 . . . . 4 . 4 . . Grunt 14 | . 6 . . 1 2 1 . . . 4 . . . . . Duelist 1 | . . . . . . 1 . . . . . . . . . Sentry 2 | . . . . . 1 . . . . . 1 . . . . Demolisher 2 | . . 2 . . . . . . . . . . . . . Hunter 1 | . . . . . . . 1 . . . . . . . . Programmer 1 | . . . . . . 1 . . . . . . . . . Z-Light 8 | . . . . . . . . . . . . . . . 8 Assembler 1 | . . . . . . . . . . . . . . . 1 Assembled 42 | . . . . . . . . . . . . . . . 42 Fireman 1 | . . . . . . . . . . . . . . . 1 Best Kill Streak 39 | 1 3 2 . 1 4 3 1 . . 4 4 . 4 . 39 Combat Bots Only 38 | . 3 2 . 1 3 3 1 . . 4 4 . 4 . 38 Max Kills in Single Turn 27 | 1 2 1 . 1 4 1 1 . . 2 1 . 2 . 27 Gunslinging . | . . . . . . . . . . . . . . . . Exploded 27 | . 1 1 . . 3 1 . . . 2 1 . 2 . 27 Melee 1 | . . . . . . 1 . . . . . . . . . Uniques/NPCs Destroyed 1 | . . . . . . . . . . . . . . . 1 Z-Imprinter (-6/Deep Caves) Combat | -11 -10 -10 -10 -9 -8 -7 -7 -7 -7 -6 -6 -6 -6 -6 -6 -------- Run | Scr Mat Min Exi Min Mat Fac Low Low Dat Pro Fac Low Low Zio Dee Damage Taken 5601 | . 428 194 . 157 236 625 244 . . 116 1083 . 172 . 2346 Core 1143 | . 93 52 . 18 35 67 13 . . . 189 . 40 . 636 Absorbed by Shields . | . . . . . . . . . . . . . . . . Redirected to Shielding 203 | . . . . . . . . . . . . . 10 . 193 Regen/Repaired (Parts) 126 | . . . . . . 126 . . . . . . . . . Core Remaining (%) 78 | 100 . . . 34 93 . . . . 88 . . . . . Volleys Fired 193 | 10 67 2 . 3 21 15 6 . . 6 17 . 4 . 42 Largest 2 | 1 2 2 . 2 2 2 1 . . 2 2 . 1 . 2 Hottest 133 | 50 80 63 . 80 73 101 61 . . 94 101 . 30 . 133 Shots Fired 295 | 10 129 4 1 8 23 24 6 . . 9 22 . 5 . 54 Gun 241 | 10 126 . 1 8 19 18 6 . . 6 19 . . . 28 Cannon . | . . . . . . . . . . . . . . . . Launcher 25 | . 3 4 . . 4 3 . . . 3 3 . 5 . . Special 29 | . . . . . . 3 . . . . . . . . 26 Kinetic 54 | . 54 . . . . . . . . . . . . . . Thermal 187 | 10 72 . 1 8 19 18 6 . . 6 19 . . . 28 Explosive 49 | . 3 2 . . 4 3 . . . 3 3 . 5 . 26 Electromagnetic 2 | . . 2 . . . . . . . . . . . . . Robot Hit Streak 13 | 6 13 3 . 9 9 4 7 . . 8 9 . . . 10 Robot Miss Streak 5 | 2 5 . . 1 3 2 . . . 2 2 . 1 . 5 Penetration Max . | . . . . . . . . . . . . . . . . Secondary Targets 1 | . 1 . . . . . . . . . . . . . . Max Gunslinging Chain 1 | . 1 . . . . . . . . . . . . . . Shots Hit Robots 201 | 8 73 2 . 8 29 19 7 . . 6 19 . . . 30 Core Hits 161 | 2 29 2 . 3 15 9 2 . . 12 10 . 7 . 70 Critical Kills 1 | . . . . . . . . . . . 1 . . . . Critical Parts Destroyed 1 | . . . . . 1 . . . . . . . . . . Critical Strikes 6 | 1 3 . . . 1 . . . . . 1 . . . . Burn 4 | 1 3 . . . . . . . . . . . . . . Smash 2 | . . . . . 1 . . . . . 1 . . . . Melee Attacks 112 | . 1 . . 1 22 30 5 7 . . 14 4 . 27 1 Impact 86 | . 1 . . 1 10 16 5 7 . . 14 4 . 27 1 Slashing 21 | . . . . . 7 14 . . . . . . . . . Piercing . | . . . . . . . . . . . . . . . . Sneak Attacks 10 | . . . . 1 4 2 . . . . 3 . . . . Combat Hostiles . | . . . . . . . . . . . . . . . . Follow-up Attacks . | . . . . . . . . . . . . . . . . Damage Inflicted 11154 | 103 1130 55 . 124 833 697 170 . . 304 739 . 220 . 6779 Guns 2352 | 103 917 . . 76 152 203 120 . . 80 218 . . . 483 Cannons . | . . . . . . . . . . . . . . . . Explosions 7224 | . 213 55 . . 535 162 . . . 224 278 . 220 . 5537 Melee 788 | . . . . 48 146 301 50 . . . 243 . . . . Ramming 31 | . . . . . . 31 . . . . . . . . . Kinetic 401 | . 401 . . . . . . . . . . . . . . Thermal 1951 | 103 516 . . 76 152 203 120 . . 80 218 . . . 483 Explosive 7178 | . 213 9 . . 535 162 . . . 224 278 . 220 . 5537 Electromagnetic 46 | . . 46 . . . . . . . . . . . . . Impact 684 | . . . . 48 146 197 50 . . . 243 . . . . Slashing 863 | . . . . . . 104 . . . . . . . . 759 Piercing . | . . . . . . . . . . . . . . . . Highest Corruption 6 | . 6 6 6 6 . 2 2 2 2 2 . 3 3 3 . Average Corruption 3 | . 4 6 6 6 . 1 2 2 2 2 . 3 3 3 . Corruption Purged . | . . . . . . . . . . . . . . . . Corruption Blocked . | . . . . . . . . . . . . . . . . Effects 82 | . 11 2 15 13 . 8 3 3 . 1 . 6 18 2 . Message Errors 16 | . 1 . 4 2 . . 2 1 . 1 . 1 3 1 . Matter Fused 23 | . 5 1 4 1 . 5 1 1 . . . . 5 . . Heat Flow Errors 8 | . 1 . 2 3 . . . . . . . . 2 . . Energy Discharges 15 | . 1 1 3 1 . 3 . . . . . 3 3 . . Parts Rejected 1 | . 1 . . . . . . . . . . . . . . Data Loss (minor) 11 | . 2 . 1 2 . . . . . . . 2 4 . . Data Loss (major) 3 | . . . . 1 . . . 1 . . . . . 1 . Misfires 5 | . . . 1 3 . . . . . . . . 1 . . Overload Shots . | . . . . . . . . . . . . . . . . Overflow Damage 539 | . . . . 26 19 129 . . . . 121 . . . 244 Projectiles 71 | . . . . . . . . . . . . . . . 71 Explosions 174 | . . . . . 1 . . . . . . . . . 173 Melee 294 | . . . . 26 18 129 . . . . 121 . . . . Knockbacks 2 | . . . . . . 1 1 . . . . . . . . Impact 2 | . . . . . . 1 1 . . . . . . . . Kinetic . | . . . . . . . . . . . . . . . . Secondary . | . . . . . . . . . . . . . . . . Self-Inflicted Damage 125 | . 2 . . . 28 39 . . . . . . 56 . . Shots 6 | . 1 . . . 1 1 . . . . . . 3 . . Rammed . | . . . . . . . . . . . . . . . . Targets Rammed 4 | . . . . . . 4 . . . . . . . . . Kicked 4 | . . . . . . 4 . . . . . . . . . Crushed . | . . . . . . . . . . . . . . . . Highest Temperature 243 | 70 162 24 243 240 7 210 24 . . 168 102 . 196 . 201 Average Temperature 62 | 34 53 13 95 76 3 94 13 . . 92 41 . 96 . 80 Received Heat Transfer 1194 | . 150 . . 123 72 96 . . . 54 336 . . . 363 Siege Activations . | . . . . . . . . . . . . . . . . Robots Corrupted . | . . . . . . . . . . . . . . . . Combat Hostiles . | . . . . . . . . . . . . . . . . Parts Fried 8 | . . . . 2 . 2 . . . . 4 . . . . Impact Corruptions 9 | . . . . 1 1 4 1 . . . 2 . . . . Robots Melted 2 | . . . . . . 1 . . . . 1 . . . . Combat Hostiles 2 | . . . . . . 1 . . . . 1 . . . . Parts Melted 11 | 1 4 . . . . 2 1 . . . 1 . . . 2 Heat Transferred 4285 | 370 1634 . . 175 350 347 222 . . 148 447 . . . 592 Parts Sabotaged . | . . . . . . . . . . . . . . . . Parts Stolen . | . . . . . . . . . . . . . . . . Parts Stripped . | . . . . . . . . . . . . . . . . Power Chain Reactions . | . . . . . . . . . . . . . . . . Missiles Intercepted . | . . . . . . . . . . . . . . . . Alert | -11 -10 -10 -10 -9 -8 -7 -7 -7 -7 -6 -6 -6 -6 -6 -6 ------- Run | Scr Mat Min Exi Min Mat Fac Low Low Dat Pro Fac Low Low Zio Dee Peak Influence 360 | 5 343 105 . 20 360 191 . . . . 192 . . . . Initial 91 | . 3 55 . . 7 91 . . . . 56 . . . . Average 113 | 1 155 72 . 4 193 82 . . . . 98 . . . . Maximum Alert Level 1 | . 1 . . . 1 . . . . . . . . . . Low Security (%) 83 | 100 63 100 . 100 58 100 . . . . 100 . . . . Level 1 16 | . 36 . . . 41 . . . . . . . . . . Level 2 . | . . . . . . . . . . . . . . . . Level 3 . | . . . . . . . . . . . . . . . . Level 4 . | . . . . . . . . . . . . . . . . Level 5 . | . . . . . . . . . . . . . . . . High Security . | . . . . . . . . . . . . . . . . Max Security . | . . . . . . . . . . . . . . . . Squads Dispatched 8 | . 2 . . . . 5 . . . . 1 . . . . Investigation . | . . . . . . . . . . . . . . . . Extermination 1 | . . . . . . 1 . . . . . . . . . Reinforcement 4 | . 2 . . . . 1 . . . . 1 . . . . Assault . | . . . . . . . . . . . . . . . . Garrison 3 | . . . . . . 3 . . . . . . . . . Intercept . | . . . . . . . . . . . . . . . . Searches Triggered . | . . . . . . . . . . . . . . . . Construction Impeded 1 | . . . . . . . . . . . 1 . . . . Haulers Reinforced . | . . . . . . . . . . . . . . . . Active Scanning Responses . | . . . . . . . . . . . . . . . . Cargo Convoy Interrupts . | . . . . . . . . . . . . . . . . Stealth | -11 -10 -10 -10 -9 -8 -7 -7 -7 -7 -6 -6 -6 -6 -6 -6 --------- Run | Scr Mat Min Exi Min Mat Fac Low Low Dat Pro Fac Low Low Zio Dee Distress Signals 6 | . 3 . . . 2 1 . . . . . . . . . Communications Jammed . | . . . . . . . . . . . . . . . . Distress Signals . | . . . . . . . . . . . . . . . . Times Spotted 164 | . 24 8 . 3 19 12 1 . . 4 10 1 11 . 71 Peak Tracking Total 37 | . 4 10 . 3 5 4 1 . . 4 5 1 4 . 37 Tactical Retreats 10 | . 1 1 . . . 4 . . . . 1 1 . . 2 Traps | -11 -10 -10 -10 -9 -8 -7 -7 -7 -7 -6 -6 -6 -6 -6 -6 ------- Run | Scr Mat Min Exi Min Mat Fac Low Low Dat Pro Fac Low Low Zio Dee Traps Triggered 4 | . 3 . . . . 1 . . . . . . . . . Indirectly . | . . . . . . . . . . . . . . . . Trap Hack Attempts . | . . . . . . . . . . . . . . . . Triggered . | . . . . . . . . . . . . . . . . Disarmed . | . . . . . . . . . . . . . . . . Reprogrammed . | . . . . . . . . . . . . . . . . Reused . | . . . . . . . . . . . . . . . . Traps Extracted . | . . . . . . . . . . . . . . . . Installed . | . . . . . . . . . . . . . . . . Triggered 2 | . . . . . . . . . . . . 2 . . . Machines | -11 -10 -10 -10 -9 -8 -7 -7 -7 -7 -6 -6 -6 -6 -6 -6 ---------- Run | Scr Mat Min Exi Min Mat Fac Low Low Dat Pro Fac Low Low Zio Dee Machines Disabled 8 | . 1 . . . 2 . . . . . . . . . 5 Max in Single Turn 1 | . 1 . . . 1 . . . . . . . . . 1 Garrison Access 1 | . . . . . 1 . . . . . . . . . . Machines Sabotaged . | . . . . . . . . . . . . . . . . Garrisons Compromised . | . . . . . . . . . . . . . . . . Overloaded Fab Kills . | . . . . . . . . . . . . . . . . Hacking | -11 -10 -10 -10 -9 -8 -7 -7 -7 -7 -6 -6 -6 -6 -6 -6 --------- Run | Scr Mat Min Exi Min Mat Fac Low Low Dat Pro Fac Low Low Zio Dee Machines Accessed 25 | . 4 1 2 . 4 5 1 . 4 . . 2 1 1 . Terminals 10 | . 4 . . . 3 3 . . . . . . . . . Fabricators 1 | . . . . . . 1 . . . . . . . . . Repair Stations 1 | . . . . . . 1 . . . . . . . . . Recycling Units . | . . . . . . . . . . . . . . . . Scanalyzers . | . . . . . . . . . . . . . . . . Garrison Access 1 | . . . . . 1 . . . . . . . . . . Total Hacks 69 | . 7 1 5 . 10 9 1 . 29 . . 2 1 4 . Successful 56 | . 4 1 5 . 4 5 1 . 29 . . 2 1 4 . Failed 13 | . 3 . . . 6 4 . . . . . . . . . Catastrophic 2 | . 1 . . . . 1 . . . . . . . . . Database Lockouts . | . . . . . . . . . . . . . . . . Manual 13 | . 6 . 1 . 4 2 . . . . . . . . . Terminals 17 | . 7 . . . 7 3 . . . . . . . . . Fabricators 2 | . . . . . . 2 . . . . . . . . . Repair Stations 4 | . . . . . . 4 . . . . . . . . . Recycling Units . | . . . . . . . . . . . . . . . . Scanalyzers . | . . . . . . . . . . . . . . . . Garrison Access 3 | . . . . . 3 . . . . . . . . . . Terminal Hacks 52 | . 4 1 5 . 3 2 1 . 29 . . 2 1 4 . Record 16 | . . . 4 . . . . . 11 . . 1 . . . Part Schematic 14 | . . . . . . . . . 10 . . . . 4 . Robot Schematic 5 | . . . . . . . . . 5 . . . . . . Prototype ID Bank 4 | . . . . . . 1 . . 3 . . . . . . Open Door 4 | . . 1 . . . . 1 . . . . 1 1 . . Level Access Points 1 | . . . . . 1 . . . . . . . . . . Branch Access Points 2 | . 1 . . . . 1 . . . . . . . . . Locate Traps 1 | . . . . . 1 . . . . . . . . . . Recall Reinforcements 1 | . 1 . . . . . . . . . . . . . . Zone Layout 3 | . 2 . . . 1 . . . . . . . . . . EX-Prototype ID Bank 1 | . . . 1 . . . . . . . . . . . . Fabricator Hacks 1 | . . . . . . 1 . . . . . . . . . Network Status 1 | . . . . . . 1 . . . . . . . . . Repair Station Hacks 2 | . . . . . . 2 . . . . . . . . . Scan Component 1 | . . . . . . 1 . . . . . . . . . Repair 1 | . . . . . . 1 . . . . . . . . . Recycling Unit Hacks . | . . . . . . . . . . . . . . . . Scanalyzer . | . . . . . . . . . . . . . . . . Garrison Access Hacks 1 | . . . . . 1 . . . . . . . . . . Seal Access 1 | . . . . . 1 . . . . . . . . . . Unauthorized Hacks . | . . . . . . . . . . . . . . . . Terminals . | . . . . . . . . . . . . . . . . Fabricators . | . . . . . . . . . . . . . . . . Repair Stations . | . . . . . . . . . . . . . . . . Recycling Units . | . . . . . . . . . . . . . . . . Scanalyzers . | . . . . . . . . . . . . . . . . Garrison Access . | . . . . . . . . . . . . . . . . Data Cores Recovered . | . . . . . . . . . . . . . . . . Used . | . . . . . . . . . . . . . . . . Hacking Detections 12 | . 4 . . . 3 5 . . . . . . . . . Full Trace Events . | . . . . . . . . . . . . . . . . Feedback Events . | . . . . . . . . . . . . . . . . Feedback Blocked . | . . . . . . . . . . . . . . . . Robot Schematics Acquired 8 | . . . . . . . . . 5 . . . . 3 . Robots Built . | . . . . . . . . . . . . . . . . Authchips . | . . . . . . . . . . . . . . . . Time . | . . . . . . . . . . . . . . . . Total Robot Build Rating . | . . . . . . . . . . . . . . . . Part Schematics Acquired 28 | . . . . . . . . . 10 . . . . 18 . Parts Built . | . . . . . . . . . . . . . . . . Authchips . | . . . . . . . . . . . . . . . . Time . | . . . . . . . . . . . . . . . . Total Part Build Rating . | . . . . . . . . . . . . . . . . Parts Repaired 1 | . . . . . . 1 . . . . . . . . . Time 19 | . . . . . . 19 . . . . . . . . . Parts Recycled . | . . . . . . . . . . . . . . . . Recycled Matter . | . . . . . . . . . . . . . . . . Retrieved Matter . | . . . . . . . . . . . . . . . . Retrieved Components . | . . . . . . . . . . . . . . . . Parts Scanalyzed . | . . . . . . . . . . . . . . . . Part Schematics Acquired . | . . . . . . . . . . . . . . . . Parts Damaged . | . . . . . . . . . . . . . . . . Bothacking | -11 -10 -10 -10 -9 -8 -7 -7 -7 -7 -6 -6 -6 -6 -6 -6 ------------ Run | Scr Mat Min Exi Min Mat Fac Low Low Dat Pro Fac Low Low Zio Dee Used RIF Installer . | . . . . . . . . . . . . . . . . Robots Hacked 3 | . . . . . 2 1 . . . . . . . . . Non-combat 2 | . . . . . 2 . . . . . . . . . . Combat 1 | . . . . . . 1 . . . . . . . . . Robot Hacks Applied 4 | . . . . . 3 1 . . . . . . . . . parse_system 3 | . . . . . 2 1 . . . . . . . . . no_distress 1 | . . . . . 1 . . . . . . . . . . Relay Couplers Released . | . . . . . . . . . . . . . . . . Fabnet Peak Effective % . | . . . . . . . . . . . . . . . . Robots Rewired . | . . . . . . . . . . . . . . . . Allies Hacked . | . . . . . . . . . . . . . . . . Hacks Repelled . | . . . . . . . . . . . . . . . . Allies | -11 -10 -10 -10 -9 -8 -7 -7 -7 -7 -6 -6 -6 -6 -6 -6 -------- Run | Scr Mat Min Exi Min Mat Fac Low Low Dat Pro Fac Low Low Zio Dee Total Allies 6 | . . . . 1 . . . . . . . . . 4 1 Largest Group 5 | . . . . 1 1 . . . . . . . . 4 5 Highest-Rated Group 240 | . . . . 31 31 . . . . . . . . 121 240 Highest-Rated Ally 119 | . . . . 31 31 . . . . . . . . 31 119 Total Orders . | . . . . . . . . . . . . . . . . Ally Attacks 102 | . . . . . 15 . . . . . . . . . 87 Total Damage 2935 | . . . . . 81 . . . . . . . . . 2854 Kills 15 | . . . . . 3 . . . . . . . . . 12 Allies Corrupted . | . . . . . . . . . . . . . . . . Allies Melted . | . . . . . . . . . . . . . . . . Intel | -11 -10 -10 -10 -9 -8 -7 -7 -7 -7 -6 -6 -6 -6 -6 -6 ------- Run | Scr Mat Min Exi Min Mat Fac Low Low Dat Pro Fac Low Low Zio Dee Robot Analysis Total . | . . . . . . . . . . . . . . . . Derelict Logs Recovered 6 | . . . . . . . 2 . . 1 . 1 1 1 . Drone Launches . | . . . . . . . . . . . . . . . . Drone Recoveries . | . . . . . . . . . . . . . . . . Exploration | -11 -10 -10 -10 -9 -8 -7 -7 -7 -7 -6 -6 -6 -6 -6 -6 ------------- Run | Scr Mat Min Exi Min Mat Fac Low Low Dat Pro Fac Low Low Zio Dee Turns Passed 9273 | 83 1196 173 438 344 640 1314 464 229 98 249 422 605 716 1389 913 Spaces Moved 5716 | 54 644 84 229 166 400 732 316 158 76 176 218 447 498 909 609 Core 29 | 4 . . . . . . . . . . . . . . 25 Treads . | . . . . . . . . . . . . . . . . Legs 5003 | . 282 84 229 166 400 732 316 158 76 176 218 447 498 909 312 Wheels 412 | 50 362 . . . . . . . . . . . . . . Hover 272 | . . . . . . . . . . . . . . . 272 Flight . | . . . . . . . . . . . . . . . . Fastest Speed 36 | 50 90 190 190 190 120 120 130 130 130 130 130 125 125 130 36 Average Speed 137 | 89 140 190 190 190 120 144 130 130 130 130 130 127 130 142 121 Slowest Speed 260 | 100 190 190 190 260 120 190 130 130 130 130 130 130 260 200 200 Overloaded Moves . | . . . . . . . . . . . . . . . . Propulsion Burnouts . | . . . . . . . . . . . . . . . . Robots Hopped . | . . . . . . . . . . . . . . . . Cave-ins Triggered . | . . . . . . . . . . . . . . . . Time Travels 1 | . . . . . . . . . . . 1 . . . . Exploration Rate (%) 49 | 5 95 30 60 50 35 22 53 33 68 37 10 68 66 85 78 Regions Visited 15 Branch Regions 11 Pre-discovered Areas 5 | . . . 1 1 . . . . 1 1 . . . 1 . Known Exits Taken 13 | . 1 . 1 1 1 1 1 1 1 1 1 1 1 1 . Unknown Exits Taken 2 | 1 . 1 . . . . . . . . . . . . . Scrap Searched 13 | . . 1 . 1 . . . . . . . 3 6 2 . Spaces Dug 71 | . 1 . . . 15 18 2 7 . . 10 4 11 3 . Terrain Destroyed 272 | . 25 . . . 33 28 2 7 . 14 21 4 30 3 105 Melee 53 | . 1 . . . 8 18 2 7 . . 10 4 . 3 . Projectile 10 | . . . . . . . . . . . . . . . 10 AOE 209 | . 24 . . . 25 10 . . . 14 11 . 30 . 95 Terrain Rammed . | . . . . . . . . . . . . . . . . Walls Destroyed . | . . . . . . . . . . . . . . . . Machines Disabled . | . . . . . . . . . . . . . . . . Actions | -11 -10 -10 -10 -9 -8 -7 -7 -7 -7 -6 -6 -6 -6 -6 -6 --------- Run | Scr Mat Min Exi Min Mat Fac Low Low Dat Pro Fac Low Low Zio Dee Total 6632 | 75 806 93 232 188 508 919 354 169 75 185 308 474 560 962 724 Wait 349 | . 47 . . 9 32 100 27 5 . . 52 14 41 2 20 Move 5701 | 53 643 83 228 165 399 731 315 157 75 175 217 446 497 908 609 Hop . | . . . . . . . . . . . . . . . . Pick Up 66 | 6 15 2 1 2 8 6 . . . . 1 4 4 6 11 Fast Attach 43 | 6 7 . . 1 2 4 . . . . 1 5 4 4 9 Attach 16 | . 1 . 1 1 4 1 . . . . 3 1 . . 4 Detach 4 | . 2 . . . 1 . . . . . . . . . 1 Swap 68 | . 11 4 1 3 12 13 1 . . 4 3 . 3 3 10 Drop 76 | . 12 2 1 3 7 15 . . . . . . 7 12 17 Fire 193 | 10 67 2 . 3 21 15 6 . . 6 17 . 4 . 42 Melee 112 | . 1 . . 1 22 30 5 7 . . 14 4 . 27 1 Ram . | . . . . . . . . . . . . . . . . Kick 4 | . . . . . . 4 . . . . . . . . . Crush . | . . . . . . . . . . . . . . . . Escape Stasis . | . . . . . . . . . . . . . . . . Rewire . | . . . . . . . . . . . . . . . . Trap . | . . . . . . . . . . . . . . . . Miscellaneous . | . . . . . . . . . . . . . . . . Route ------- -11/Scrapyard -10/Materials (discovered 4 exits: [*Mat x3] / *Min) -10/Mines -10/Exiles -9/Mines -8/Materials (discovered 3 exits: *Fac x3) -7/Factory (discovered 4 exits: *Fac x2 / *Low x2) -7/Lower Caves -7/Lower Caves (discovered 2 exits: *Fac / *Dat) -7/Data Miner -6/Proximity Caves -6/Factory -6/Lower Caves -6/Lower Caves (discovered 2 exits: [*Fac] / *Zio) -6/Zion (discovered 2 exits: *Dee / [*Pro]) -6/Deep Caves History --------- Turn | Location | Event 30 | -11/Scrapyard | Discovered new exit (range 16) 84 | -11/Scrapyard | Entered Materials 196 | -10/Materials | Identified exit to Mines 245 | -10/Materials | Discovered new exit (range 3) 301 | -10/Materials | Build established: Mutant 607 | -10/Materials | Discovered new exit (range 5) 1017 | -10/Materials | Discovered new exit (range 8) 1280 | -10/Materials | Entered Mines 1285 | -10/Mines | Found the Drone Emporium 1296 | -10/Mines | Found Prototype Device 1343 | -10/Mines | Assembled infested the area 1348 | -10/Mines | Assisted by a Guerilla fighting off Assembled 1366 | -10/Mines | Core integrity fell below 50% 1409 | -10/Mines | Received a Rocket Launcher from a helpful Derelict 1446 | -10/Mines | Deemed a non-threat by the Exiles lab entrance 1446 | -10/Mines | Discovered new exit (range 5) 1453 | -10/Mines | Entered Exiles 1497 | -10/Exiles | Met 8R-AWN 1533 | -10/Exiles | Met EX-HEX 1590 | -10/Exiles | Met EX-BIN 1611 | -10/Exiles | Aligned with FarCom system 1613 | -10/Exiles | Given EX-Vault access code 1657 | -10/Exiles | Opened EX-Vault 1670 | -10/Exiles | Identified Splice Drone Bay 1673 | -10/Exiles | Found Chronowheel 1712 | -10/Exiles | Warned to stay clear of 0b10 Research branches 1769 | -10/Exiles | Met EX-DEC 1782 | -10/Exiles | Learned location of Zion (-6) 1868 | -10/Exiles | Discovered new exit (range 12) 1889 | -10/Exiles | Identified exit to Mines 1891 | -10/Exiles | Left Exiles lab with Chronowheel 1891 | -10/Exiles | Entered Mines 2192 | -9/Mines | Discovered new exit (range 5) 2197 | -9/Mines | Identified exit to Materials 2208 | -9/Mines | Escorted by a lone wolf Derelict 2228 | -9/Mines | Learned location of Storage (-9) 2235 | -9/Mines | Entered Materials 2235 | -8/Materials | Accompanied by 1 ally 2235 | -8/Materials | Evolved 4 slots: Propulsion x2, Utility x2 2676 | -8/Materials | Identified exit to Factory 2875 | -8/Materials | Entered Factory 2875 | -7/Factory | Evolved 2 slots: Utility x2 3003 | -7/Factory | Repaired Hrd. Medium Armor Plating 3024 | -7/Factory | Build established: Scavenger-Mutant 3196 | -7/Factory | Discovered new exit (range 12) 3249 | -7/Factory | Identified exit to Factory 3547 | -7/Factory | Discovered exit to Factory (range 15) 3672 | -7/Factory | Garrison activated, responded to threat 3734 | -7/Factory | Build established: Hacker-Mutant 4038 | -7/Factory | Identified exit to Lower Caves 4189 | -7/Factory | Entered Lower Caves 4206 | -7/Lower Caves | Learned Factory stockpile data 4541 | -7/Lower Caves | Build established: Hacker-Assassin 4642 | -7/Lower Caves | Discovered new exit (range 10) 4652 | -7/Lower Caves | Identified exit to Lower Caves 4653 | -7/Lower Caves | Entered another Lower Caves area 4657 | -7/Lower Caves | Discovered exit to Factory (range 7) 4866 | -7/Lower Caves | Discovered new exit (range 13) 4881 | -7/Lower Caves | Identified exit to Data Miner 4882 | -7/Lower Caves | Entered Data Miner 4882 | -7/Data Miner | Discovered new exit (range 6) 4907 | -7/Data Miner | Met Data Miner 4929 | -7/Data Miner | Learned location of Section 7 (-2) 4929 | -7/Data Miner | Acquired the access code to Warlord's prototype stash 4951 | -7/Data Miner | Received God Mode back door access code from Data Miner 4979 | -7/Data Miner | Identified exit to Proximity Caves 4980 | -7/Data Miner | Entered Proximity Caves 5222 | -6/Proximity Caves | Discovered exit to Factory (range 5) 5229 | -6/Proximity Caves | Entered Factory 5229 | -6/Factory | Evolved 2 slots: Utility x2 5552 | -6/Factory | Lost 5 parts (2n2u1w) 5596 | -6/Factory | Activated Chronowheel 5596 | -6/Factory | Spacetime reconverged on an earlier point 5642 | -6/Factory | Discovered new exit (range 7) 5650 | -6/Factory | Identified exit to Lower Caves 5651 | -6/Factory | Entered Lower Caves 5671 | -6/Lower Caves | Lost 3 parts (1p1u1w) 5882 | -6/Lower Caves | Build established: Assassin 6098 | -6/Lower Caves | Learned Factory terminal intel 6236 | -6/Lower Caves | Discovered new exit (range 17) 6255 | -6/Lower Caves | Identified exit to Lower Caves 6256 | -6/Lower Caves | Entered another Lower Caves area 6305 | -6/Lower Caves | Discovered new exit (range 11) 6406 | -6/Lower Caves | Encountered a Warlord checkpoint 6951 | -6/Lower Caves | Discovered new exit (range 8) 6971 | -6/Lower Caves | Identified exit to Zion 6972 | -6/Lower Caves | Entered Zion 7069 | -6/Zion | System corruption cleaned by Quarantine Array 7090 | -6/Zion | Build established: Derelict-Assassin 7220 | -6/Zion | Discovered new exit (range 10) 7348 | -6/Zion | Gained Derelict followers 7383 | -6/Zion | Learned Factory stockpile data 7495 | -6/Zion | Found Prototype Device 7495 | -6/Zion | Identified Phasing AFG 7556 | -6/Zion | Found Prototype Special Weapon 7556 | -6/Zion | Identified RU-N14's Throwing Claymores 7560 | -6/Zion | Found RU-N14's Throwing Claymores 7564 | -6/Zion | Found RU-N14's Throwing Claymores 7567 | -6/Zion | Found RU-N14's Throwing Claymores 7808 | -6/Zion | Learned Factory emergency access door positions 7924 | -6/Zion | Learned location of Armory (-3) 8101 | -6/Zion | Found Relay Coupler [Programmer] 8349 | -6/Zion | Discovered new exit (range 4) 8352 | -6/Zion | Saw the warning signs outside the Deep Caves entrance 8354 | -6/Zion | Identified exit to Deep Caves 8361 | -6/Zion | Entered Deep Caves 8361 | -6/Deep Caves | Accompanied by 4 allies 8362 | -6/Deep Caves | Met 5H-AD0 8467 | -6/Deep Caves | Z-Facility disabled 8482 | -6/Deep Caves | Attacked by Z-Imprinter 8492 | -6/Deep Caves | Destroyed Z-Imprinter 8531 | -6/Deep Caves | Found Prototype Device 8531 | -6/Deep Caves | Identified Zio. Metafield Generator 8663 | -6/Deep Caves | Found Prototype Protection 8663 | -6/Deep Caves | Identified Zio. Weapon Casing 8819 | -6/Deep Caves | Found Prototype Protection 8948 | -6/Deep Caves | Build established: Scavenger-Mutant 9182 | -6/Deep Caves | Spotted as-86247 9213 | -6/Deep Caves | Spotted as-31657 9222 | -6/Deep Caves | Triggered Deep Caves wall 9222 | -6/Deep Caves | Spotted AS-24858 9222 | -6/Deep Caves | Spotted AS-96379 9232 | -6/Deep Caves | Exposed GOLEM chamber 9235 | -6/Deep Caves | Destroyed AS-24858 9256 | -6/Deep Caves | Core integrity fell below 50% 9265 | -6/Deep Caves | Found Unknown Device 9265 | -6/Deep Caves | Identified GOLEM Unit 9270 | -6/Deep Caves | Core integrity fell below 20% 9272 | -6/Deep Caves | Destroyed 38 combat bots 9274 | -6/Deep Caves | Destroyed by as-86247 with Assembled Focal Cannon Last Messages --------------- 09252_ Unknown Device springs to life. 09253_ as-03348 GOLEM Unit beginning Prototype Leg integration. 09253_ Dropped Lrg. Storage Unit. 09253_ Dropped Prototype Protection. 09255_ RU-N14's Throwing Claymores destroyed. 09255_ Zio. Metafield Generator destroyed. 09255_ System Shield destroyed. 09256_ Acquired Powered Hammer. 09257_ as-94316 released from Unknown Device. 09259_ Adv. Visual Processing Unit destroyed. 09259_ Signal Interpreter destroyed. 09261_ Unknown Device springs to life. 09262_ An Unknown Device tumbles out of the Wall Chamber. 09263_ Powered Hammer destroyed. 09265_ Acquired Unknown Device. 09265_ Identified GOLEM Unit. 09266_ GOLEM Unit beginning Asb. Alloy Leg integration. 09266_ GOLEM Unit springs to life. 09267_ as-68621 GOLEM Unit beginning Asb. Alloy Leg integration. 09272_ as-86247: "DSI9AT1D G8OHIBQ29FWG 26R186 QD12WHW8W33 TDK1 81FTS" Map ----- +----------------------------------------------------+ | ?????????? #? #???????????????????????? | | ????????""" #? #???????????????????????? | | ????????" ## #???????????????????????? | | ????????" # #####???????????????????? | | ????????" ! ???? ???????????????? | | ????????# #????? ??????????????? | | ???????"" ??????? ??????????????? | | ???????" ###?????? ??????????????? | | ???????" ???????? ##???????????? | | ???????" #?###?????? # ???????????? | | ????????" #?# #?????? #???????????# | | ??????### ### ####???# #??????????## | | ??""""" ; #???# #?????????## | | ??" ! * ##?????# #?????????# | | ??" ! = %[ ###???# #?????????# | | ??" | [ ! #???# #?????????# | | ??" ]*!!!! g ###???# #???####?## | | ??" [|= ! ##???## ##### ### | | ??" a!* #??## | | ??" a #??# # | | ??""""" ! #??# #? | | ??????### * #???# ## | | ???????" ! #????# | | ???????""" #????# ## ## ## | | ?????????" #???## ############ | | ?????????" @ ##?## ##????????## | | ?????????" !! [ #?# ###??????# | | ????????# [ #?# ##????## | | ????????" [ #?# #???## | | ????????" g ! ### ## ##???# | | ????????" M ##?##???## | | ????????""" ! #??????## | | ????????" #?????## | | ?????????" #######??#### | | ????????" #???????## | | ?????????" ##??????## ## | | ????????" # # #???????# ##? | | ????????? #### ## ## ##???????### ##?? | | ?????????"" #????# ?# ?###??????????########??? | | ???????????????????#??# ????????????????????????? | | ???????????????????????#????????????????????????? | | | | | | | | | | | | | | | | | | | +----------------------------------------------------+ Best States ------------- Heat Dissipation 63 Energy Generation 27 Energy Capacity 850 Matter Stores 300 Matter Capacity 300 Sight Range 20 Robot Scan Range 14 Terrain Scan Density 10 Armor Coverage 400 Utility Shielding 66 Weapon Shielding 100 Phase Shifting 5 Evasion (%) 62 Offensive Hacking 10 Defensive Hacking 10 Item Schematics ----------------- Combat Drone Bay | -7/Data Miner | Free Lgt. Regenerative Plating | -7/Data Miner | Free Cld. Aerolev Unit | -7/Data Miner | Free Gravity Neutralizer | -7/Data Miner | Free Imp. Heavy Laser | -7/Data Miner | Free Arm. Medium Treads | -7/Data Miner | Free Hvy. Gauss Cannon | -7/Data Miner | Free Adv. Hacking Suite | -7/Data Miner | Free Enh. Gauss Cannon | -7/Data Miner | Free Imp. Core Shielding | -7/Data Miner | Free Battle Rifle | -6/Zion | Free Battle Cannon | -6/Zion | Free Flamer | -6/Zion | Free Ripper | -6/Zion | Free Imp. Medium Treads | -6/Zion | Archive Adv. Plasma Cannon | -6/Zion | Archive Hvy. Plasma Cannon | -6/Zion | Archive Imp. Thermal Shield | -6/Zion | Archive EM Disruption Field | -6/Zion | Archive Lrn. Proton Cannon | -6/Zion | Archive 0b10 Decoder Chip [Generic] | -6/Zion | Archive Impulse Thruster | -6/Zion | Archive Railgun | -6/Zion | Archive Arm. Leg | -6/Zion | Archive Magnetic Acceleration Cannon | -6/Zion | Archive Recoil Nullifier | -6/Zion | Archive Imp. Transmission Jammer | -6/Zion | Archive Mak. Hover Unit | -6/Zion | Archive Robot Schematics ------------------ G-47 Trooper | -7/Data Miner | Free O-24 Administrator | -7/Data Miner | Free G-50 Soldier | -7/Data Miner | Free R-10 Processor | -7/Data Miner | Free E-15 Imp | -7/Data Miner | Free A-02 Transporter | -6/Zion | Archive A-15 Conveyor | -6/Zion | Archive M-22 Extractor | -6/Zion | Archive Fabricated ------------ Nothing Alien Tech Used ----------------- None Achievements -------------- None Challenges ------------ None Game ------ Seed CloakingHardenedPenetrator Manual? 0 Play Time 02:18:04 Cumulative 114.1 hours Start 2022.07.14 @ 22:36:47 End 2022.07.16 @ 12:17:34 Sessions 5 Manual Loads 0 Difficulty Rogue Special Mode None Game No. 80 Rogue 61 Adventurer 16 Explorer 3 Win Type - Total 4 Types 4/0/0/0/0/0/0/0/0 Lore% 49 Gallery% 55 Achievement% 44 Wizard Run 0 Options --------- ASCII 0 Keyboard 0 Movement Mouse Keybinds 0 Fullscreen 0 Font 16/Terminus Map View 76x50 Tactical HUD 1 Map Filters NONE Filters NONE Steam X RUN: 2803ec7f-974f-4cc7-94df-2618075f6477